bitfinex-derivatives/quotes_BNBF0:USTF0_20241225
["timestamp","ask_amount","ask_price","bid_price","bid_amount"]
[1735149940039,0.26255442,700.94,699.6,0.28587764]
[1735149940238,0.26255442,700.93,699.6,0.28587764]
[1735149940439,0.26254263,700.92,699.6,0.28587764]
[1735149940643,0.26254263,700.91,699.6,0.28587764]
[1735149940945,0.26254263,700.97,699.6,0.28587764]
[1735149941142,0.26253245,700.96,699.6,0.28587764]
[1735149941343,0.28531484,700.98,699.6,0.28587764]
[1735149941548,0.26252124,700.97,699.6,0.28587764]
[1735149942347,0.28531484,700.98,699.6,0.28587764]
[1735149942549,0.26251697,700.97,699.6,0.28587764]
[1735149945052,0.28531484,700.98,699.6,0.28587764]
[1735149945251,0.26254557,700.97,699.6,0.28587764]
[1735149947848,0.26251236,700.96,699.6,0.28587764]
[1735149948153,0.54783941,700.95,699.6,0.28587764]
[1735149948348,0.28532705,700.95,699.6,0.28587764]
[1735149948656,0.26250741,700.94,699.6,0.28587764]
[1735149949054,0.28532705,700.95,699.6,0.28587764]
[1735149992188,0.28532705,700.95,699.61,1.27551867]
[1735149992888,0.28532705,700.95,699.61,5.39519138]
[1735149993182,0.28532705,700.95,699.62,5.39519138]
[1735149993389,0.28532705,700.95,699.62,2.56731403]
[1735149993586,0.28532705,700.95,699.63,2.82564095]
[1735149993781,0.28532705,700.95,699.64,2.82564095]
[1735149993981,0.28532705,700.95,699.65,2.82564095]
[1735149994282,0.28532705,700.95,699.66,2.56731403]
[1735149994481,0.28532705,700.95,699.67,2.82564095]
[1735149994880,0.28532705,700.95,699.68,2.56731403]
[1735149995381,0.28532705,700.95,699.6,0.28587764]
[1735149995581,0.28532705,700.95,699.69,2.56731403]
[1735149995783,0.28532705,700.95,699.6,0.28587764]
[1735150000084,0.28532705,700.95,699.6,5.67696243]
[1735150000288,0.28532705,700.95,699.6,2.85319167]
[1735150000490,0.28532705,700.95,699.61,2.56731403]
[1735150000691,0.28532705,700.95,699.62,1.27551867]
[1735150001589,0.28532705,700.95,699.6,0.28587764]
[1735150010797,0.26255014,700.94,699.6,0.28587764]
[1735150010999,0.28533519,700.93,699.6,0.28587764]
[1735150064737,0.2625404,700.92,699.6,0.28587764]
[1735150064934,0.28533519,700.93,699.6,0.28587764]
[1735150069539,0.28533519,700.93,698.61,1.27551867]
[1735150069940,0.28533519,700.93,698.72,0.28623769]
[1735150070641,0.26261488,700.92,698.72,0.28623769]
[1735150071035,0.26261488,700.91,698.72,0.28623769]
[1735150071235,0.26261488,700.9,698.72,0.28623769]
[1735150071434,0.26261488,700.89,698.72,0.28623769]
[1735150071633,0.26261488,700.88,698.72,0.28623769]
[1735150071834,0.26261488,700.87,698.72,0.28623769]
[1735150072035,0.28533519,700.93,698.72,0.28623769]
[1735150072237,0.26260539,700.92,698.72,0.28623769]
[1735150073034,0.28534741,700.9,698.72,0.28623769]
[1735150073234,0.26260785,700.89,698.72,0.28623769]
[1735150075537,0.26260785,700.89,698.72,3.12344073]
[1735150075739,0.28534741,700.9,698.72,3.12344073]
[1735150075944,0.26260616,700.89,698.73,2.57538694]
[1735150076143,0.26260616,700.89,698.74,2.83720304]
[1735150076442,0.26260616,700.89,698.75,2.57538694]
[1735150076644,0.26260616,700.89,698.76,2.83720304]
[1735150076840,0.26260616,700.89,698.77,2.57538694]
[1735150077044,0.26260616,700.89,698.78,2.83720304]
[1735150077245,0.26260616,700.89,698.79,2.57538694]
[1735150077551,0.26260616,700.89,698.8,2.83720304]
[1735150077846,0.26260616,700.89,698.81,2.57538694]
[1735150078040,0.26260616,700.89,698.82,2.83720304]
[1735150078542,0.26260687,700.88,698.83,2.57538694]
[1735150078747,0.26260687,700.87,698.85,0.28618444]
[1735150079044,0.26260687,700.86,698.85,2.86157138]
[1735150079239,0.26260687,700.85,698.86,2.83720304]
[1735150079443,0.26260687,700.84,698.87,2.57538694]
[1735150079745,0.26260687,700.83,698.88,2.83720304]
[1735150079947,0.26260687,700.82,698.88,2.83720304]
[1735150080141,0.26260687,700.81,698.9,0.28616397]
[1735150080346,0.26260687,700.8,698.9,0.28616397]
[1735150080545,0.54799907,700.79,698.9,0.28616397]
[1735150080745,0.26260687,700.78,698.9,3.12336701]
[1735150080940,0.2853922,700.79,698.91,2.57538694]
[1735150081146,0.26260746,700.78,698.92,2.83720304]
[1735150081746,0.26260746,700.78,698.94,1.27551867]
[1735150081946,0.26260746,700.78,698.94,4.11272171]
[1735150082146,0.26260746,700.78,698.95,2.83720304]
[1735150082342,0.26260746,700.78,698.96,2.57538694]
[1735150082547,0.2853922,700.79,698.97,2.83720304]
[1735150083044,0.2853922,700.79,698.98,2.57538694]
[1735150083247,0.2853922,700.79,698.99,2.83720304]
[1735150083744,0.2853922,700.79,699.0,2.57538694]
[1735150083947,0.2853922,700.79,699.01,2.83720304]
[1735150084348,0.2853922,700.79,699.02,2.57538694]
[1735150084644,0.2853922,700.79,699.03,2.83720304]
[1735150085043,0.2853922,700.79,699.04,2.57538694]
[1735150085246,0.2853922,700.79,699.05,2.83720304]
[1735150085645,0.2853922,700.79,699.06,2.57538694]
[1735150085841,0.2853922,700.79,699.07,2.83720304]
[1735150086244,0.2853922,700.79,699.08,2.57538694]
[1735150086444,0.2853922,700.79,698.95,1.27551867]
[1735150086743,0.2853922,700.79,698.9,0.28616397]
[1735150089445,0.26263138,700.78,698.9,0.28616397]
[1735150089641,0.2853922,700.79,698.9,0.28616397]
[1735150094551,0.26262812,700.78,698.9,0.28616397]
[1735150095250,0.26262822,700.77,698.9,0.28616397]
[1735150095452,0.26262822,700.76,698.9,1.56168264]
[1735150095650,0.26262822,700.75,698.9,1.56168264]
[1735150095845,0.26262822,700.74,698.9,1.56168264]
[1735150096048,0.26262822,700.73,698.9,1.56168264]
[1735150096249,0.26262822,700.72,698.9,1.56168264]
[1735150096444,0.2853922,700.79,698.9,1.56168264]
[1735150096445,0.26262822,700.71,698.9,0.28616397]
[1735150096650,0.26262822,700.7,698.9,0.28616397]
[1735150096851,0.26262822,700.69,698.9,0.28616397]
[1735150097046,0.26262822,700.78,698.9,0.28616397]
[1735150097243,0.26271206,700.77,698.9,0.28616397]
[1735150097446,0.26271206,700.76,698.9,0.28616397]
[1735150097648,0.26271206,700.75,698.9,0.28616397]
[1735150097951,0.26271206,700.74,698.9,0.28616397]
[1735150098146,0.26271206,700.73,698.9,0.28616397]
[1735150098351,0.26271206,700.72,698.9,0.28616397]
[1735150098550,0.26271206,700.71,698.9,0.28616397]
[1735150098755,0.26271206,700.7,698.9,0.28616397]
[1735150098952,0.26271206,700.69,698.9,0.28616397]
[1735150099152,0.26271206,700.68,698.9,0.28616397]
[1735150099349,0.2853922,700.79,698.9,0.28616397]
[1735150099555,0.26269819,700.78,698.9,0.28616397]
[1735150102557,0.26270018,700.77,698.9,0.28616397]
[1735150102753,0.26270018,700.76,698.9,0.28616397]
[1735150102953,0.26270018,700.75,698.9,0.28616397]
[1735150103157,0.2853922,700.79,698.9,0.28616397]
[1735150103357,0.26268428,700.78,698.9,0.28616397]
[1735150104662,0.28540441,700.76,698.9,0.28616397]
[1735150104854,0.26268428,700.75,698.9,0.28616397]
[1735150105058,0.28541663,700.73,698.9,0.28616397]
[1735150106258,0.26268855,700.72,698.9,0.28616397]
[1735150106657,0.28542885,700.7,698.9,0.28616397]
[1735150106862,0.26268855,700.69,698.9,0.28616397]
[1735150108157,0.28544107,700.67,698.9,0.28616397]
[1735150108362,0.26268855,700.66,698.9,0.28616397]
[1735150110958,0.26273228,700.65,698.9,0.28616397]
[1735150111160,0.26273228,700.64,698.9,0.28616397]
[1735150111362,0.26273228,700.63,698.9,0.28616397]
[1735150111557,0.26273228,700.62,698.9,0.28616397]
[1735150111761,0.2627244,700.61,698.9,0.28616397]
[1735150111965,0.2627244,700.6,698.9,0.28616397]
[1735150112164,0.2627244,700.59,698.9,0.28616397]
[1735150112365,0.2627244,700.58,698.9,0.28616397]
[1735150112564,0.2627244,700.57,698.9,0.28616397]
[1735150112771,0.28548997,700.55,698.9,0.28616397]
[1735150113064,0.2627244,700.54,698.9,0.28616397]
[1735150113764,0.28548997,700.55,698.9,0.28616397]
[1735150113967,0.2627183,700.54,698.9,0.28616397]
[1735150114164,0.28550219,700.52,698.9,0.28616397]
[1735150114366,0.2627183,700.51,698.9,0.28616397]
[1735150114559,0.28551442,700.49,698.9,0.28616397]
[1735150126074,0.28551442,700.49,698.91,1.27551867]
[1735150126271,0.28551442,700.49,698.92,0.28615578]
[1735150126871,0.28551442,700.49,699.0,1.27551867]
[1735150127479,0.28551442,700.49,699.01,0.28611893]
[1735150127879,0.28551442,700.49,699.06,1.27551867]
[1735150128079,0.28551442,700.49,699.07,0.28609438]
[1735150128581,0.28551442,700.49,699.08,1.27551867]
[1735150128880,0.28551442,700.49,699.09,0.28608619]
[1735150145497,0.26273617,700.48,699.09,0.28608619]
[1735150146192,0.54826101,700.47,699.09,0.28608619]
[1735150146392,0.28552257,700.47,699.09,0.28608619]
[1735150146994,0.26273794,700.46,699.09,0.28608619]
[1735150147199,0.28553073,700.45,699.09,0.28608619]
[1735150147499,0.26273794,700.44,699.09,0.28608619]
[1735150147701,0.28553888,700.43,699.09,0.28608619]
[1735150150501,0.26273793,700.42,699.09,0.28608619]
[1735150150701,0.28554703,700.41,699.09,0.28608619]
[1735150153806,0.28554703,700.41,698.53,1.27551867]
[1735150154107,0.28554703,700.41,698.55,0.28630735]
[1735150158805,0.26281574,700.4,698.55,0.28630735]
[1735150160712,0.26283942,700.39,698.55,0.28630735]
[1735150160913,0.26283942,700.38,698.55,0.28630735]
[1735150161113,0.26283942,700.37,698.55,0.28630735]
[1735150161313,0.26283942,700.36,698.55,0.28630735]
[1735150161513,0.28554703,700.41,698.55,0.28630735]
[1735150161514,0.26283942,700.35,698.55,0.28630735]
[1735150161815,0.26283942,700.34,698.55,0.28630735]
[1735150162006,0.26283942,700.33,698.55,0.28630735]
[1735150162213,0.28558781,700.31,698.55,0.28630735]
[1735150162408,0.26283942,700.3,698.55,0.28630735]
[1735150163313,0.28560004,700.28,698.55,0.28630735]
[1735150163510,0.26283942,700.27,698.55,0.28630735]
[1735150163707,0.28561228,700.25,698.55,0.28630735]
[1735150164515,0.26283993,700.24,698.55,0.28630735]
[1735150164713,0.28561228,700.25,698.55,0.28630735]
[1735150166014,0.26284516,700.24,698.55,0.28630735]
[1735150166309,0.28562451,700.22,698.55,0.28630735]
[1735150168313,0.26285315,700.21,698.55,0.28630735]
[1735150168609,0.28563267,700.2,698.55,0.28630735]
[1735150168806,0.26285315,700.19,698.55,0.28630735]
[1735150169008,0.28564083,700.18,698.55,0.28630735]
[1735150169212,0.26285315,700.17,698.55,0.28630735]
[1735150169614,0.28564899,700.16,698.55,0.28630735]
[1735150169813,0.26285315,700.15,698.55,0.28630735]
[1735150170211,0.28565715,700.14,698.55,0.28630735]
[1735150170514,0.26285315,700.13,698.55,0.28630735]
[1735150170715,0.28566531,700.12,698.55,0.28630735]
[1735150171219,0.26284906,700.11,698.55,0.28630735]
[1735150173524,0.28567347,700.1,698.55,0.28630735]
[1735150173724,0.26284906,700.09,698.55,0.28630735]
[1735150174925,0.28567347,700.1,698.55,0.28630735]
[1735150175124,0.26283814,700.09,698.55,0.28630735]
[1735150175923,0.28568163,700.08,698.55,0.28630735]
[1735150176119,0.26283814,700.07,698.55,0.28630735]
[1735150176319,0.5485549,700.06,698.55,0.28630735]
[1735150176520,0.28569387,700.05,698.55,0.28630735]
[1735150195143,0.28569387,700.05,698.58,1.27551867]
[1735150196941,0.28569387,700.05,698.57,1.27551867]
[1735150198538,0.28569387,700.05,698.55,0.28630735]
[1735150198539,0.28569387,700.05,698.6,1.27551867]
[1735150200239,0.28569387,700.05,698.57,1.27551867]
[1735150201947,0.28569387,700.05,698.55,0.28630735]
[1735150236568,0.28569387,700.05,698.6,1.27551867]
[1735150237472,0.28569387,700.05,698.55,0.28630735]
[1735150266698,0.28569387,700.05,698.56,1.27551867]
[1735150267398,0.28569387,700.05,698.57,0.28629915]
[1735150270900,0.28569387,700.05,698.73,1.27551867]
[1735150271905,0.28569387,700.05,698.81,1.27551867]
[1735150272604,0.28569387,700.05,698.82,1.27551867]
[1735150276108,0.28569387,700.05,698.82,4.11699625]
[1735150276407,0.28569387,700.05,698.83,2.84147758]
[1735150276809,0.28569387,700.05,698.84,2.5776447]
[1735150277109,0.28569387,700.05,698.85,2.84147758]
[1735150277303,0.28569387,700.05,698.86,2.5776447]
[1735150277503,0.28569387,700.05,698.87,2.84147758]
[1735150278004,0.28569387,700.05,698.88,2.5776447]
[1735150278208,0.28569387,700.05,698.89,2.84147758]
[1735150278704,0.28569387,700.05,698.9,2.5776447]
[1735150278910,0.28569387,700.05,698.91,2.84147758]
[1735150279511,0.28569387,700.05,698.92,2.5776447]
[1735150279710,0.28569387,700.05,698.73,1.27551867]
[1735150279912,0.28569387,700.05,698.74,0.28622949]
[1735150315644,0.26286292,700.04,698.74,0.28622949]
[1735150315943,0.28570204,700.03,698.74,0.28622949]
[1735150327154,0.26286688,700.02,698.74,0.28622949]
[1735150328452,0.2857102,700.01,698.74,0.28622949]
[1735150328655,0.26286688,700.0,698.74,0.28622949]
[1735150329655,0.26288472,699.99,698.74,0.28622949]
[1735150329856,0.2857102,700.01,698.74,0.28622949]
[1735150330053,0.26288489,700.0,698.74,0.28622949]
[1735150330453,0.26288489,699.99,698.74,0.28622949]
[1735150330657,0.28571836,699.99,698.74,0.28622949]
[1735150331258,0.26288658,699.98,698.74,0.28622949]
[1735150331454,0.28572653,699.97,698.74,0.28622949]
[1735150334259,0.26289581,699.96,698.74,0.28622949]
[1735150334859,0.28572653,699.97,698.74,0.28622949]
[1735150335260,0.28572653,699.97,698.37,2.58195481]
[1735150335456,0.26290398,699.96,698.37,0.28638114]
[1735150335655,0.28572653,699.97,698.37,0.28638114]
[1735150336463,0.28572653,699.97,698.38,1.27551867]
[1735150337057,0.28572653,699.97,698.37,0.28638114]
[1735150338862,0.28572653,699.97,698.37,1.56189981]
[1735150339461,0.28572653,699.97,698.37,0.28638114]
[1735150344765,0.26296416,699.96,698.37,0.28638114]
[1735150344967,0.28573877,699.94,698.37,0.28638114]
[1735150345171,0.26296416,699.93,698.37,0.28638114]
[1735150345770,0.28575102,699.91,698.37,0.28638114]
[1735150345968,0.26296416,699.9,698.37,0.28638114]
[1735150346174,0.28576327,699.88,698.37,0.28638114]
[1735150346572,0.26297873,699.87,698.37,0.28638114]
[1735150346774,0.28577552,699.85,698.37,0.28638114]
[1735150351583,0.26301507,699.84,698.37,0.28638114]
[1735150351882,0.28578777,699.82,698.37,0.28638114]
[1735150358990,0.26298916,699.81,698.37,0.28638114]
[1735150359181,0.28579594,699.8,698.37,0.28638114]
[1735150362184,0.26299396,699.79,698.37,0.28638114]
[1735150362383,0.2858041,699.78,698.37,0.28638114]
[1735150365986,0.26300161,699.77,698.37,0.28638114]
[1735150366184,0.28581636,699.75,698.37,0.28638114]
[1735150366389,0.26300161,699.74,698.37,0.28638114]
[1735150366589,0.28581636,699.75,698.37,0.28638114]
[1735150376198,0.26299939,699.74,698.37,0.28638114]
[1735150376397,0.28582453,699.73,698.37,0.28638114]
[1735150376596,0.26299939,699.72,698.37,0.28638114]
[1735150376797,0.2858327,699.71,698.37,0.28638114]
[1735150376998,0.26299939,699.7,698.37,0.28638114]
[1735150377294,0.28584087,699.69,698.37,0.28638114]
[1735150377500,0.26299939,699.68,698.37,0.28638114]
[1735150377699,0.28584904,699.67,698.37,0.28638114]
[1735150511286,1.06448371,700.63,698.37,0.28638114]
[1735150511486,0.28550219,700.52,698.37,0.28638114]
[1735150511678,0.26282321,700.51,698.37,0.28638114]
[1735150512285,0.26281848,700.5,698.37,0.28638114]
[1735150512585,0.26281848,700.49,698.37,0.28638114]
[1735150512786,0.26281848,700.48,698.37,0.28638114]
[1735150512986,0.26281848,700.47,698.37,0.28638114]
[1735150513190,0.26281848,700.46,698.37,0.28638114]
[1735150513389,0.26281848,700.45,698.37,0.28638114]
[1735150513682,0.26281848,700.44,698.37,0.28638114]
[1735150513989,0.26281848,700.43,698.37,0.28638114]
[1735150514188,0.26281848,700.42,698.37,0.28638114]
[1735150514487,0.26281848,700.41,698.37,0.28638114]
[1735150514685,0.26281848,700.4,698.37,0.28638114]
[1735150514982,0.26281159,700.39,698.37,0.28638114]
[1735150515187,0.26281159,700.38,698.37,0.28638114]
[1735150515382,0.26281159,700.37,698.37,0.28638114]
[1735150515582,0.26281159,700.36,698.37,0.28638114]
[1735150515785,0.26281159,700.35,698.37,0.28638114]
[1735150515984,0.26281159,700.34,698.37,0.28638114]
[1735150516188,0.26281159,700.33,698.37,0.28638114]
[1735150516390,0.26281159,700.32,698.37,0.28638114]
[1735150516591,0.26281159,700.31,698.37,0.28638114]
[1735150516789,0.26281159,700.3,698.37,0.28638114]
[1735150517092,0.28560004,700.28,698.37,0.28638114]
[1735150517292,0.26281159,700.27,698.37,0.28638114]
[1735150517494,0.28561228,700.25,698.37,0.28638114]
[1735150517794,0.26282741,700.24,698.37,0.28638114]
[1735150518296,0.28562043,700.23,698.37,3.12529149]
[1735150518495,0.26282741,700.22,698.37,5.708662]
[1735150518696,0.26282741,700.22,698.38,2.83891035]
[1735150518896,0.26282741,700.22,698.39,0.28637294]
[1735150519091,0.26282741,700.22,698.39,2.86974345]
[1735150519296,0.26282741,700.22,698.4,2.83891035]
[1735150519794,0.26282741,700.22,698.42,1.27551867]
[1735150519996,0.26282741,700.22,698.42,4.11442902]
[1735150520200,0.26282741,700.22,698.43,2.83891035]
[1735150520494,0.26282741,700.22,698.44,2.86972295]
[1735150520695,0.26282741,700.22,698.45,0.28634834]
[1735150520893,0.26282741,700.22,698.45,3.12009572]
[1735150521097,0.26282741,700.22,698.46,5.41708438]
[1735150521295,0.26282741,700.22,698.47,2.58337051]
[1735150521700,0.26282741,700.22,698.45,1.56186701]
[1735150522095,0.26282741,700.22,698.46,0.28634424]
[1735150522294,0.28562859,700.21,698.46,0.28634424]
[1735150522493,0.26282741,700.2,698.46,0.28634424]
[1735150522898,0.28562859,700.21,698.46,0.28634424]
[1735150523800,0.26282379,700.2,698.46,0.28634424]
[1735150524096,0.28564083,700.18,698.46,0.28634424]
[1735150524897,0.26286545,700.17,698.46,0.28634424]
[1735150525100,0.28565307,700.15,698.46,0.28634424]
[1735150541806,0.28565307,700.15,698.46,1.56186291]
[1735150542602,0.28565307,700.15,698.47,1.27551867]
[1735150542803,0.28565307,700.15,698.49,0.28633194]
[1735150550014,0.28565307,700.15,698.49,5.69901915]
[1735150550313,0.28565307,700.15,698.5,5.41268721]
[1735150550514,0.28565307,700.15,698.52,0.28631964]
[1735150550915,0.28565307,700.15,698.52,5.69900685]
[1735150551109,0.28565307,700.15,698.53,2.84115136]
[1735150551310,0.28565307,700.15,698.54,2.85784729]
[1735150551510,0.28565307,700.15,698.55,3.12745871]
[1735150551815,0.28565307,700.15,698.56,0.28630325]
[1735150552014,0.28565307,700.15,698.56,2.8578391]
[1735150552211,0.28565307,700.15,698.57,2.84115136]
[1735150552415,0.28565307,700.15,698.59,0.28629095]
[1735150553012,0.28565307,700.15,698.59,5.69897816]
[1735150553212,0.28565307,700.15,698.6,2.84115136]
[1735150553413,0.28565307,700.15,698.62,0.28627866]
[1735150554018,0.28565307,700.15,698.62,5.69896587]
[1735150554219,0.28565307,700.15,698.63,2.84115136]
[1735150554418,0.28565307,700.15,698.63,5.41268721]
[1735150554619,0.28565307,700.15,698.65,0.28626637]
[1735150555220,0.28565307,700.15,698.65,2.85780222]
[1735150555421,0.28565307,700.15,698.65,0.28626637]
[1735150562327,0.28565307,700.15,698.68,1.27551867]
[1735150563222,0.28565307,700.15,698.68,6.68656264]
[1735150563429,0.28565307,700.15,698.73,1.27551867]
[1735150564127,0.28565307,700.15,698.72,2.83950812]
[1735150564628,0.28565307,700.15,698.73,2.57153585]
[1735150564831,0.28565307,700.15,698.74,2.83950812]
[1735150565223,0.28565307,700.15,698.75,2.57153585]
[1735150565626,1.06448371,700.98,698.76,2.83512033]
[1735150565825,0.28532298,700.96,698.77,2.57153585]
[1735150566130,0.26265026,700.95,698.78,1.48335971]
[1735150566331,0.26265026,700.95,698.78,2.83493967]
[1735150566732,0.26261361,700.94,698.79,2.57153585]
[1735150566930,0.26261361,700.93,698.8,2.83493967]
[1735150567126,0.26261361,700.92,698.8,2.83493967]
[1735150567329,0.26261361,700.91,698.8,2.83493967]
[1735150567527,0.26261361,700.9,698.81,2.57153585]
[1735150567727,0.26261361,700.89,698.82,2.83493967]
[1735150567931,0.26261361,700.88,698.82,2.83493967]
[1735150568232,0.28532298,700.96,698.83,2.57153585]
[1735150568233,0.26261361,700.87,698.83,2.57153585]
[1735150568427,0.26261361,700.86,698.83,2.57153585]
[1735150568630,0.28532298,700.96,698.84,2.83055593]
[1735150568631,0.26261361,700.85,698.84,2.83055593]
[1735150568831,0.26261361,700.84,698.73,1.27551867]
[1735150569037,0.26261491,700.83,698.85,2.57153585]
[1735150569229,0.28532298,700.96,698.68,1.27551867]
[1735150569627,0.26261521,700.95,698.68,1.27551867]
[1735150570025,0.26261521,700.95,698.67,2.8309835]
[1735150570229,0.26261521,700.95,698.68,2.57153585]
[1735150570426,0.26261521,700.95,698.69,2.8309835]
[1735150570631,0.26261521,700.95,698.7,2.57153585]
[1735150570828,0.26261521,700.95,698.71,2.8309835]
[1735150571027,0.26261521,700.95,698.72,2.57153585]
[1735150571233,0.26261521,700.95,698.73,2.8309835]
[1735150571627,0.26261521,700.95,698.74,2.57153585]
[1735150571832,0.26261521,700.95,698.75,2.8309835]
[1735150572132,0.26261521,700.95,698.65,0.28626637]
[1735150572327,0.28532298,700.96,698.65,0.28626637]
[1735150572328,0.26264501,700.94,698.65,0.28626637]
[1735150572531,0.26264501,700.93,698.65,0.28626637]
[1735150572728,0.26264501,700.92,698.65,0.28626637]
[1735150572934,0.54798834,700.91,698.65,0.28626637]
[1735150573231,1.06448371,701.34,698.65,0.28626637]
[1735150573232,0.28535148,700.89,698.65,0.28626637]
[1735150573432,0.26264511,700.88,698.65,0.28626637]
[1735150574231,0.28536369,700.86,698.65,0.28626637]
[1735150574433,0.26264511,700.85,698.65,0.28626637]
[1735150575530,0.28537591,700.83,698.65,0.28626637]
[1735150575736,0.26264511,700.82,698.65,0.28626637]
[1735150576338,0.28538812,700.8,698.65,0.28626637]
[1735150576539,0.26264511,700.79,698.65,0.28626637]
[1735150576935,0.28540034,700.77,698.65,0.28626637]
[1735150578839,0.26265233,700.76,698.65,0.28626637]
[1735150579540,0.28541256,700.74,698.65,0.28626637]
[1735150579943,0.26265664,700.73,698.65,0.28626637]
[1735150580337,0.28542071,700.72,698.65,0.28626637]
[1735150580543,0.26264915,700.71,698.65,0.28626637]
[1735150580736,0.28542885,700.7,698.65,0.28626637]
[1735150581941,0.26265415,700.69,698.65,0.28626637]
[1735150582146,0.28542885,700.7,698.65,0.28626637]
[1735150583045,0.26268975,700.69,698.65,0.28626637]
[1735150586146,0.26271661,700.68,698.65,0.28626637]
[1735150586349,0.26271661,700.67,698.65,0.28626637]
[1735150586550,0.26271661,700.66,698.65,0.28626637]
[1735150586751,0.26271661,700.65,698.65,0.28626637]
[1735150586949,0.26271661,700.64,698.65,0.28626637]
[1735150587146,0.26271661,700.63,698.65,0.28626637]
[1735150587347,0.26271661,700.62,698.65,0.28626637]
[1735150587549,0.26271661,700.61,698.65,0.28626637]
[1735150587744,0.26271661,700.6,698.65,0.28626637]
[1735150587949,0.26271661,700.59,698.65,0.28626637]
[1735150588146,0.26271661,700.58,698.65,0.28626637]
[1735150588352,0.28548589,700.56,698.65,0.28626637]
[1735150588546,0.26271661,700.55,698.65,0.28626637]
[1735150589445,0.28549812,700.53,698.65,0.28626637]
[1735150589650,0.26271661,700.52,698.65,0.28626637]
[1735150589948,0.28551034,700.5,698.65,0.28626637]
[1735150590153,0.26271661,700.49,698.65,0.28626637]
[1735150590353,0.2855185,700.48,698.65,0.28626637]
[1735150590655,0.26271661,700.47,698.65,0.28626637]
[1735150591152,0.26271661,700.47,698.65,5.67961613]
[1735150591349,0.28552665,700.46,698.66,4.04605872]
[1735150591654,0.26271661,700.45,698.67,0.28625817]
[1735150591849,0.2855348,700.44,698.67,2.8538207]
[1735150592055,0.2855348,700.44,698.67,0.28625817]
[1735150593153,0.2855348,700.44,698.67,5.68327261]
[1735150593355,0.2855348,700.44,698.68,6.67247493]
[1735150593556,0.2855348,700.44,698.69,2.82939373]
[1735150593757,0.2855348,700.44,698.7,2.56756253]
[1735150594057,0.2855348,700.44,698.71,2.82939373]
[1735150594356,0.2855348,700.44,698.81,1.27551867]
[1735150594558,0.2627106,700.43,698.81,1.27551867]
[1735150594755,0.2855348,700.44,698.81,1.27551867]
[1735150595157,0.2855348,700.44,698.84,1.27551867]
[1735150596059,0.26270497,700.43,698.84,1.27551867]
[1735150596759,0.26270497,700.43,698.85,1.56170311]
[1735150596953,0.28554295,700.42,698.86,0.28618035]
[1735150597353,0.28554295,700.42,698.86,6.95865528]
[1735150597557,0.28554295,700.42,698.87,2.82939373]
[1735150597861,0.28554295,700.42,698.88,2.85373469]
[1735150598160,0.28554295,700.42,698.89,0.28616806]
[1735150625981,0.28554295,700.42,698.89,1.56168673]
[1735150626780,0.28554295,700.42,698.92,1.27551867]
[1735150627776,0.28554295,700.42,698.92,6.6855293]
[1735150627978,0.28554295,700.42,698.93,2.83854386]
[1735150628179,0.28554295,700.42,698.94,2.57146677]
[1735150628382,0.28554295,700.42,698.95,2.83854386]
[1735150628583,0.28554295,700.42,698.96,2.57146677]
[1735150628783,0.28554295,700.42,698.97,2.83854386]
[1735150629184,0.28554295,700.42,698.98,2.57146677]
[1735150629380,0.28554295,700.42,698.99,2.83854386]
[1735150629784,0.28554295,700.42,699.0,2.57146677]
[1735150629984,0.28554295,700.42,699.01,2.83854386]
[1735150630181,0.28554295,700.42,699.0,2.57146677]
[1735150630383,0.28554295,700.42,699.01,2.83612167]
[1735150630585,0.28554295,700.42,698.93,1.27551867]
[1735150631388,0.28554295,700.42,698.89,0.28616806]
[1735150631784,0.28554295,700.42,698.89,5.69393816]
[1735150631987,0.28554295,700.42,698.9,2.83630333]
[1735150632186,0.28554295,700.42,698.9,5.4077701]
[1735150632381,0.28554295,700.42,698.91,5.4077701]
[1735150632585,0.28554295,700.42,698.92,5.4077701]
[1735150632783,0.28554295,700.42,698.92,2.57146677]
[1735150632984,0.28554295,700.42,698.89,0.28616806]
[1735150638491,1.06448371,701.47,698.89,0.28616806]
[1735150638686,0.28516432,701.35,698.89,0.28616806]
[1735150638889,0.26252161,701.34,698.89,0.28616806]
[1735150639692,0.26252161,701.34,699.0,1.27551867]
[1735150640488,1.06448371,701.32,699.14,1.27551867]
[1735150640688,0.26252161,701.31,699.14,1.27551867]
[1735150641608,0.26251145,701.3,699.14,1.27551867]
[1735150641895,0.26251145,701.29,699.14,1.27551867]
[1735150642095,0.26251145,701.28,699.13,1.27551867]
[1735150642293,0.26251145,701.27,699.13,1.27551867]
[1735150642493,0.26251145,701.26,699.13,1.27551867]
[1735150642796,0.26251145,701.25,699.13,2.83267838]
[1735150642997,0.26251145,701.24,699.13,2.83267838]
[1735150643199,0.26251145,701.23,699.14,2.57146677]
[1735150643398,0.26251145,701.22,699.15,2.83267838]
[1735150643697,0.26251145,701.21,699.16,2.57146677]
[1735150643896,0.26251145,701.2,699.17,2.83267838]
[1735150644095,0.26251145,701.19,699.18,2.57146677]
[1735150644291,0.26251863,701.18,699.19,2.83267838]
[1735150644498,0.26251863,701.17,699.19,2.83267838]
[1735150644695,0.26251863,701.34,699.2,2.57146677]
[1735150644895,0.26251863,701.33,699.21,2.83267838]
[1735150645196,0.26251863,701.32,699.22,2.57146677]
[1735150645398,0.26251863,701.31,699.23,2.83267838]